[Event "December 19 Late 2023"]
[Site "https://www.chess.com"]
[Date "2023.12.19"]
[Round "7"]
[White "Chigaev, Maksim"]
[Black "Melian, Juan Sebastian"]
[Result "0-1"]
[Board "29"]
[TimeControl "180+1"]
[WhiteFideId "4108116"]
[BlackFideId "3706575"]
[WhiteElo "2561"]
[BlackElo "2098"]
[WhiteTeam "ESP"]
[BlackTeam "PAR"]
[WhiteClock "0:00:30"]
[BlackClock "0:00:42"]

1. e4 {[%clk 0:03:00]}  c5 {[%clk 0:02:59]} 2. Ne2 {[%clk 0:02:59]}  e6 {[%clk 0:02:59]} 3. g3 {[%clk 0:02:58]}  d5 {[%clk 0:02:58]} 4. exd5 {[%clk 0:02:57]}  Qxd5 {[%clk 0:02:58]} 5. Rg1 {[%clk 0:02:56]}  Nf6 {[%clk 0:02:57]} 6. Nbc3 {[%clk 0:02:56]}  Qd7 {[%clk 0:02:55]} 7. d4 {[%clk 0:02:45]}  Nc6 {[%clk 0:02:54]} 8. Be3 {[%clk 0:02:43]}  cxd4 {[%clk 0:02:34]} 9. Nxd4 {[%clk 0:02:42]}  Bb4 {[%clk 0:02:29]} 10. Nb5 {[%clk 0:02:23]}  Nd5 {[%clk 0:02:14]} 11. Bd2 {[%clk 0:02:20]}  Nxc3 {[%clk 0:02:01]} 12. Bxc3 {[%clk 0:02:20]}  Bxc3+ {[%clk 0:01:58]} 13. Nxc3 {[%clk 0:02:19]}  Qxd1+ {[%clk 0:01:49]} 14. Rxd1 {[%clk 0:02:18]}  Bd7 {[%clk 0:01:49]} 15. Bg2 {[%clk 0:02:17]}  Ke7 {[%clk 0:01:49]} 16. f4 {[%clk 0:02:16]}  Rac8 {[%clk 0:01:48]} 17. a3 {[%clk 0:02:11]}  b6 {[%clk 0:01:48]} 18. Ne4 {[%clk 0:02:10]}  Na5 {[%clk 0:01:45]} 19. c3 {[%clk 0:01:32]}  Nc4 {[%clk 0:01:43]} 20. Rb1 {[%clk 0:01:28]}  Bc6 {[%clk 0:01:35]} 21. Nd2 {[%clk 0:01:12]}  Nxd2 {[%clk 0:01:11]} 22. Kxd2 {[%clk 0:01:11]}  Rhd8+ {[%clk 0:01:12]} 23. Kc2 {[%clk 0:01:10]}  Bb5 {[%clk 0:01:06]} 24. Rbd1 {[%clk 0:01:04]}  Be2 {[%clk 0:01:05]} 25. Rd2 {[%clk 0:00:59]}  Rxd2+ {[%clk 0:01:03]} 26. Kxd2 {[%clk 0:00:59]}  Bc4 {[%clk 0:01:04]} 27. Be4 {[%clk 0:00:57]}  Rd8+ {[%clk 0:01:05]} 28. Kc2 {[%clk 0:00:51]}  f5 {[%clk 0:01:04]} 29. Bf3 {[%clk 0:00:50]}  h6 {[%clk 0:00:52]} 30. h4 {[%clk 0:00:48]}  Kf6 {[%clk 0:00:49]} 31. h5 {[%clk 0:00:48]}  e5 {[%clk 0:00:46]} 32. fxe5+ {[%clk 0:00:48]}  Kxe5 {[%clk 0:00:47]} 33. Re1+ {[%clk 0:00:48]}  Kf6 {[%clk 0:00:47]} 34. b3 {[%clk 0:00:45]}  Bd3+ {[%clk 0:00:42]} 35. Kb2 {[%clk 0:00:42]}  Be4 {[%clk 0:00:41]} 36. Bxe4 {[%clk 0:00:41]}  Re8 {[%clk 0:00:42]} 37. c4 {[%clk 0:00:30]}  Rxe4 {[%clk 0:00:42]} 38. Kc3 {[%clk 0:00:30]}  Rxe1 {[%clk 0:00:42]} 0-1

[Event "December 19 Late 2023"]
[Site "https://www.chess.com"]
[Date "2023.12.19"]
[Round "7"]
[White "Golubev, Mikhail"]
[Black "Dourerassou, Jonathan"]
[Result "0-1"]
[Board "32"]
[TimeControl "180+1"]
[WhiteFideId "14100983"]
[BlackFideId "628050"]
[WhiteElo "2352"]
[BlackElo "2499"]
[WhiteTeam "UKR"]
[BlackTeam "FRA"]
[WhiteClock "0:00:00"]
[BlackClock "0:01:20"]

1. e4 {[%clk 0:03:00]}  c5 {[%clk 0:02:59]} 2. Nf3 {[%clk 0:03:00]}  e6 {[%clk 0:03:00]} 3. d4 {[%clk 0:03:00]}  cxd4 {[%clk 0:03:01]} 4. Nxd4 {[%clk 0:03:00]}  Nf6 {[%clk 0:03:01]} 5. Nc3 {[%clk 0:02:59]}  Nc6 {[%clk 0:03:02]} 6. a3 {[%clk 0:02:58]}  Be7 {[%clk 0:02:56]} 7. Nxc6 {[%clk 0:02:58]}  bxc6 {[%clk 0:02:56]} 8. e5 {[%clk 0:02:57]}  Nd5 {[%clk 0:02:56]} 9. Qg4 {[%clk 0:02:54]}  Kf8 {[%clk 0:02:41]} 10. Qg3 {[%clk 0:02:38]}  h5 {[%clk 0:02:38]} 11. h4 {[%clk 0:02:21]}  Rb8 {[%clk 0:02:27]} 12. Nxd5 {[%clk 0:02:01]}  cxd5 {[%clk 0:02:26]} 13. c3 {[%clk 0:02:01]}  d6 {[%clk 0:02:21]} 14. Bd3 {[%clk 0:01:55]}  dxe5 {[%clk 0:02:17]} 15. Qxe5 {[%clk 0:01:55]}  Bd6 {[%clk 0:02:14]} 16. Qe3 {[%clk 0:01:45]}  Qc7 {[%clk 0:02:05]} 17. O-O {[%clk 0:01:40]}  e5 {[%clk 0:02:05]} 18. Rd1 {[%clk 0:01:27]}  Bg4 {[%clk 0:02:02]} 19. Be2 {[%clk 0:01:22]}  Bc5 {[%clk 0:01:45]} 20. Qd2 {[%clk 0:01:13]}  Be6 {[%clk 0:01:45]} 21. b4 {[%clk 0:01:02]}  Be7 {[%clk 0:01:44]} 22. c4 {[%clk 0:00:58]}  dxc4 {[%clk 0:01:39]} 23. Bb2 {[%clk 0:00:58]}  Bxh4 {[%clk 0:01:38]} 24. Rac1 {[%clk 0:00:55]}  Rd8 {[%clk 0:01:36]} 25. Qe3 {[%clk 0:00:53]}  Rxd1+ {[%clk 0:01:36]} 26. Rxd1 {[%clk 0:00:52]}  Bf6 {[%clk 0:01:35]} 27. b5 {[%clk 0:00:20]}  g6 {[%clk 0:01:33]} 28. a4 {[%clk 0:00:19]}  Kg7 {[%clk 0:01:33]} 29. Rc1 {[%clk 0:00:18]}  Rc8 {[%clk 0:01:32]} 30. Bc3 {[%clk 0:00:17]}  Qc5 {[%clk 0:01:28]} 31. Qxc5 {[%clk 0:00:17]}  Rxc5 {[%clk 0:01:29]} 32. Rb1 {[%clk 0:00:16]}  Bf5 {[%clk 0:01:28]} 33. Rc1 {[%clk 0:00:14]}  Bd3 {[%clk 0:01:26]} 34. Bb4 {[%clk 0:00:12]}  Rd5 {[%clk 0:01:23]} 35. Bd1 {[%clk 0:00:11]}  e4 {[%clk 0:01:22]} 36. Bc3 {[%clk 0:00:12]}  Bxc3 {[%clk 0:01:20]} 37. Rxc3 {[%clk 0:00:00]}  Kf6 {[%clk 0:01:20]} 0-1

[Event "December 19 Late 2023"]
[Site "https://www.chess.com"]
[Date "2023.12.19"]
[Round "7"]
[White "Sivakumar, Shaaketh"]
[Black "Rustemov, Alexander"]
[Result "0-1"]
[Board "35"]
[TimeControl "180+1"]
[WhiteFideId "30940176"]
[BlackFideId "4119002"]
[WhiteElo "2292"]
[BlackElo "2792"]
[WhiteTeam "USA"]
[BlackTeam "RUS"]
[WhiteClock "0:00:01"]
[BlackClock "0:00:09"]

1. d4 {[%clk 0:03:00]}  d5 {[%clk 0:02:55]} 2. Nf3 {[%clk 0:02:57]}  Bf5 {[%clk 0:02:52]} 3. Bf4 {[%clk 0:02:55]}  e6 {[%clk 0:02:51]} 4. e3 {[%clk 0:02:54]}  Nd7 {[%clk 0:02:48]} 5. c4 {[%clk 0:02:54]}  Bxb1 {[%clk 0:02:42]} 6. Qxb1 {[%clk 0:02:53]}  Bb4+ {[%clk 0:02:40]} 7. Kd1 {[%clk 0:02:53]}  Be7 {[%clk 0:02:37]} 8. Be2 {[%clk 0:02:51]}  Ngf6 {[%clk 0:02:37]} 9. Nd2 {[%clk 0:02:49]}  c5 {[%clk 0:02:36]} 10. dxc5 {[%clk 0:02:45]}  Nxc5 {[%clk 0:02:33]} 11. Qc2 {[%clk 0:02:35]}  O-O {[%clk 0:02:30]} 12. Ke1 {[%clk 0:02:30]}  Rc8 {[%clk 0:02:26]} 13. Rd1 {[%clk 0:02:29]}  Qb6 {[%clk 0:02:21]} 14. Kf1 {[%clk 0:02:27]}  Rfd8 {[%clk 0:02:19]} 15. g4 {[%clk 0:02:24]}  Nfe4 {[%clk 0:01:49]} 16. Kg2 {[%clk 0:02:21]}  Bh4 {[%clk 0:01:43]} 17. Rhf1 {[%clk 0:01:51]}  Nxd2 {[%clk 0:01:41]} 18. Rxd2 {[%clk 0:01:46]}  Ne4 {[%clk 0:01:40]} 19. Rd4 {[%clk 0:01:42]}  Bf6 {[%clk 0:01:38]} 20. Rxe4 {[%clk 0:01:42]}  dxe4 {[%clk 0:01:38]} 21. Qxe4 {[%clk 0:01:39]}  Qxb2 {[%clk 0:01:28]} 22. Bf3 {[%clk 0:01:40]}  b6 {[%clk 0:01:20]} 23. g5 {[%clk 0:01:40]}  Be7 {[%clk 0:01:16]} 24. a4 {[%clk 0:01:24]}  Qb4 {[%clk 0:01:13]} 25. Qb7 {[%clk 0:01:22]}  Bd6 {[%clk 0:01:08]} 26. Bxd6 {[%clk 0:01:19]}  Qxd6 {[%clk 0:01:07]} 27. Qxa7 {[%clk 0:01:17]}  Qc5 {[%clk 0:01:00]} 28. Kh1 {[%clk 0:01:07]}  Qxc4 {[%clk 0:00:53]} 29. Rg1 {[%clk 0:01:08]}  Qc5 {[%clk 0:00:48]} 30. Rg4 {[%clk 0:01:03]}  Qa5 {[%clk 0:00:45]} 31. Qe7 {[%clk 0:00:58]}  Re8 {[%clk 0:00:44]} 32. Qb7 {[%clk 0:00:57]}  Qf5 {[%clk 0:00:42]} 33. Rf4 {[%clk 0:00:56]}  Rc1+ {[%clk 0:00:32]} 34. Kg2 {[%clk 0:00:55]}  Qxg5+ {[%clk 0:00:33]} 35. Rg4 {[%clk 0:00:53]}  Qc5 {[%clk 0:00:30]} 36. h4 {[%clk 0:00:48]}  h6 {[%clk 0:00:28]} 37. Qd7 {[%clk 0:00:47]}  Rf8 {[%clk 0:00:26]} 38. Qd2 {[%clk 0:00:46]}  Rc2 {[%clk 0:00:25]} 39. Qd3 {[%clk 0:00:47]}  Qc3 {[%clk 0:00:24]} 40. Qf1 {[%clk 0:00:41]}  Rd8 {[%clk 0:00:24]} 41. Kh3 {[%clk 0:00:38]}  Qf6 {[%clk 0:00:22]} 42. Rg3 {[%clk 0:00:31]}  Rdd2 {[%clk 0:00:22]} 43. Qb5 {[%clk 0:00:23]}  g6 {[%clk 0:00:22]} 44. Qe8+ {[%clk 0:00:15]}  Kg7 {[%clk 0:00:22]} 45. Be4 {[%clk 0:00:09]}  Rxf2 {[%clk 0:00:19]} 46. Bxc2 {[%clk 0:00:09]}  Rxc2 {[%clk 0:00:19]} 47. Qb5 {[%clk 0:00:08]}  Qf5+ {[%clk 0:00:16]} 48. Qxf5 {[%clk 0:00:08]}  exf5 {[%clk 0:00:16]} 49. e4 {[%clk 0:00:05]}  fxe4 {[%clk 0:00:15]} 50. Rb3 {[%clk 0:00:05]}  Ra2 {[%clk 0:00:15]} 51. Rb4 {[%clk 0:00:05]}  f5 {[%clk 0:00:14]} 52. Kg3 {[%clk 0:00:06]}  g5 {[%clk 0:00:11]} 53. hxg5 {[%clk 0:00:04]}  hxg5 {[%clk 0:00:12]} 54. Rb5 {[%clk 0:00:04]}  Ra3+ {[%clk 0:00:10]} 55. Kf2 {[%clk 0:00:04]}  Kg6 {[%clk 0:00:10]} 56. Rxb6+ {[%clk 0:00:04]}  Kh5 {[%clk 0:00:11]} 57. Rb4 {[%clk 0:00:03]}  Kg4 {[%clk 0:00:10]} 58. Ke1 {[%clk 0:00:04]}  Ra2 {[%clk 0:00:10]} 59. a5 {[%clk 0:00:04]}  Rxa5 {[%clk 0:00:09]} 60. Rb2 {[%clk 0:00:04]}  Ra3 {[%clk 0:00:08]} 61. Kf2 {[%clk 0:00:04]}  Kf4 {[%clk 0:00:09]} 62. Ke2 {[%clk 0:00:04]}  g4 {[%clk 0:00:09]} 63. Ra2 {[%clk 0:00:01]}  Rxa2+ {[%clk 0:00:09]} 0-1

[Event "December 19 Late 2023"]
[Site "https://www.chess.com"]
[Date "2023.12.19"]
[Round "7"]
[White "Hajiyev, Kanan"]
[Black "Wieczorek, Oskar"]
[Result "0-1"]
[Board "36"]
[TimeControl "180+1"]
[WhiteFideId "13404148"]
[BlackFideId "1133950"]
[WhiteElo "2102"]
[BlackElo "2407"]
[WhiteTeam "AZE"]
[BlackTeam "POL"]
[WhiteClock "0:00:54"]
[BlackClock "0:00:29"]

1. d4 {[%clk 0:03:00]}  Nf6 {[%clk 0:02:59]} 2. Nf3 {[%clk 0:03:00]}  g6 {[%clk 0:02:59]} 3. g3 {[%clk 0:03:01]}  c5 {[%clk 0:02:59]} 4. Bg2 {[%clk 0:03:02]}  cxd4 {[%clk 0:02:59]} 5. Nxd4 {[%clk 0:03:02]}  Nc6 {[%clk 0:03:00]} 6. O-O {[%clk 0:03:02]}  Qb6 {[%clk 0:03:00]} 7. Nxc6 {[%clk 0:03:01]}  bxc6 {[%clk 0:03:00]} 8. c4 {[%clk 0:03:01]}  Bg7 {[%clk 0:03:00]} 9. Nc3 {[%clk 0:03:01]}  O-O {[%clk 0:03:01]} 10. b3 {[%clk 0:03:02]}  Ne4 {[%clk 0:02:47]} 11. Bxe4 {[%clk 0:03:02]}  Bxc3 {[%clk 0:02:47]} 12. Bh6 {[%clk 0:03:02]}  Bg7 {[%clk 0:02:42]} 13. Bxg7 {[%clk 0:03:00]}  Kxg7 {[%clk 0:02:43]} 14. h4 {[%clk 0:02:59]}  Qc5 {[%clk 0:02:41]} 15. e3 {[%clk 0:02:57]}  d6 {[%clk 0:02:34]} 16. Rc1 {[%clk 0:02:56]}  a5 {[%clk 0:02:28]} 17. Qd2 {[%clk 0:02:55]}  Bg4 {[%clk 0:02:19]} 18. Kg2 {[%clk 0:02:51]}  h5 {[%clk 0:02:18]} 19. Bf3 {[%clk 0:02:43]}  Bxf3+ {[%clk 0:02:18]} 20. Kxf3 {[%clk 0:02:44]}  f6 {[%clk 0:02:14]} 21. Kg2 {[%clk 0:02:44]}  Rfb8 {[%clk 0:02:12]} 22. Rb1 {[%clk 0:02:38]}  a4 {[%clk 0:02:11]} 23. Qc3 {[%clk 0:02:29]}  axb3 {[%clk 0:02:11]} 24. axb3 {[%clk 0:02:29]}  Ra3 {[%clk 0:02:11]} 25. b4 {[%clk 0:02:14]}  Rxc3 {[%clk 0:01:54]} 26. bxc5 {[%clk 0:02:15]}  Rxb1 {[%clk 0:01:55]} 27. Rxb1 {[%clk 0:02:10]}  dxc5 {[%clk 0:01:51]} 28. Rb6 {[%clk 0:02:03]}  Rxc4 {[%clk 0:01:51]} 29. Rxc6 {[%clk 0:02:04]}  Kf7 {[%clk 0:01:52]} 30. Kf3 {[%clk 0:02:03]}  Rc2 {[%clk 0:01:45]} 31. Rc8 {[%clk 0:01:56]}  c4 {[%clk 0:01:44]} 32. Rc6 {[%clk 0:01:55]}  Ke8 {[%clk 0:01:43]} 33. Rc7 {[%clk 0:01:53]}  Kd8 {[%clk 0:01:41]} 34. Rc5 {[%clk 0:01:54]}  Kd7 {[%clk 0:01:40]} 35. e4 {[%clk 0:01:54]}  Kd6 {[%clk 0:01:25]} 36. Rc8 {[%clk 0:01:54]}  Kd7 {[%clk 0:01:25]} 37. Rc5 {[%clk 0:01:54]}  Kd6 {[%clk 0:01:09]} 38. Rc8 {[%clk 0:01:53]}  Ke5 {[%clk 0:01:09]} 39. Ke3 {[%clk 0:01:48]}  Rc3+ {[%clk 0:01:06]} 40. Kd2 {[%clk 0:01:48]}  Rd3+ {[%clk 0:01:06]} 41. Ke2 {[%clk 0:01:49]}  Kd4 {[%clk 0:01:03]} 42. e5 {[%clk 0:01:37]}  fxe5 {[%clk 0:00:57]} 43. Rc7 {[%clk 0:01:36]}  Ra3 {[%clk 0:00:36]} 44. Rxe7 {[%clk 0:01:26]}  Ra2+ {[%clk 0:00:34]} 45. Ke1 {[%clk 0:01:26]}  c3 {[%clk 0:00:34]} 46. Rd7+ {[%clk 0:01:18]}  Ke4 {[%clk 0:00:32]} 47. Rd6 {[%clk 0:01:08]}  Ra1+ {[%clk 0:00:29]} 48. Ke2 {[%clk 0:01:02]}  c2 {[%clk 0:00:29]} 49. f3+ {[%clk 0:00:54]}  Kf5 {[%clk 0:00:29]} 0-1

[Event "December 19 Late 2023"]
[Site "https://www.chess.com"]
[Date "2023.12.19"]
[Round "7"]
[White "Sabuk, Piotr"]
[Black "Rastbod, Ali"]
[Result "1-0"]
[Board "38"]
[TimeControl "180+1"]
[WhiteFideId "1137565"]
[BlackFideId "12567477"]
[WhiteElo "2276"]
[BlackElo "2209"]
[WhiteTeam "POL"]
[BlackTeam "IRI"]
[WhiteClock "0:00:13"]
[BlackClock "0:00:08"]

1. d4 {[%clk 0:03:00]}  g6 {[%clk 0:02:51]} 2. e4 {[%clk 0:03:00]}  Bg7 {[%clk 0:02:51]} 3. Nf3 {[%clk 0:03:00]}  d6 {[%clk 0:02:52]} 4. Nbd2 {[%clk 0:03:00]}  Nf6 {[%clk 0:02:50]} 5. Bb5+ {[%clk 0:02:57]}  c6 {[%clk 0:02:48]} 6. Bd3 {[%clk 0:02:56]}  O-O {[%clk 0:02:48]} 7. O-O {[%clk 0:02:56]}  c5 {[%clk 0:02:49]} 8. c3 {[%clk 0:02:52]}  cxd4 {[%clk 0:02:48]} 9. cxd4 {[%clk 0:02:52]}  Nc6 {[%clk 0:02:46]} 10. Nb3 {[%clk 0:02:47]}  Bg4 {[%clk 0:02:42]} 11. Be3 {[%clk 0:02:47]}  Nd7 {[%clk 0:02:37]} 12. Be2 {[%clk 0:02:42]}  a5 {[%clk 0:02:34]} 13. a4 {[%clk 0:02:33]}  Nb4 {[%clk 0:02:28]} 14. h3 {[%clk 0:02:25]}  Bxf3 {[%clk 0:02:27]} 15. Bxf3 {[%clk 0:02:26]}  Nb6 {[%clk 0:02:22]} 16. Be2 {[%clk 0:02:25]}  e6 {[%clk 0:02:12]} 17. Bb5 {[%clk 0:02:23]}  d5 {[%clk 0:02:06]} 18. e5 {[%clk 0:02:23]}  Qh4 {[%clk 0:02:02]} 19. Nc5 {[%clk 0:02:07]}  Nc4 {[%clk 0:01:58]} 20. Bc1 {[%clk 0:02:05]}  Nc6 {[%clk 0:01:51]} 21. b3 {[%clk 0:02:01]}  N4xe5 {[%clk 0:01:31]} 22. dxe5 {[%clk 0:02:00]}  Bxe5 {[%clk 0:01:32]} 23. Ra2 {[%clk 0:01:57]}  Nb4 {[%clk 0:01:30]} 24. Re2 {[%clk 0:01:54]}  Bd6 {[%clk 0:01:28]} 25. Nd7 {[%clk 0:01:49]}  Rfd8 {[%clk 0:01:24]} 26. Bb2 {[%clk 0:01:48]}  Nc6 {[%clk 0:01:20]} 27. Bf6 {[%clk 0:01:42]}  Qf4 {[%clk 0:01:15]} 28. g3 {[%clk 0:01:38]}  Qh6 {[%clk 0:01:12]} 29. Bxd8 {[%clk 0:01:29]}  Rxd8 {[%clk 0:01:10]} 30. Bxc6 {[%clk 0:01:28]}  bxc6 {[%clk 0:01:11]} 31. Ne5 {[%clk 0:01:27]}  Qxh3 {[%clk 0:01:11]} 32. Qd4 {[%clk 0:01:21]}  c5 {[%clk 0:01:01]} 33. Qf4 {[%clk 0:01:14]}  Rf8 {[%clk 0:00:46]} 34. Qg4 {[%clk 0:01:08]}  Qxg4 {[%clk 0:00:45]} 35. Nxg4 {[%clk 0:01:08]}  Rb8 {[%clk 0:00:45]} 36. Re3 {[%clk 0:01:02]}  Kg7 {[%clk 0:00:43]} 37. f4 {[%clk 0:00:47]}  h5 {[%clk 0:00:33]} 38. Ne5 {[%clk 0:00:46]}  c4 {[%clk 0:00:33]} 39. bxc4 {[%clk 0:00:46]}  Bc5 {[%clk 0:00:33]} 40. Re1 {[%clk 0:00:43]}  Rb4 {[%clk 0:00:19]} 41. cxd5 {[%clk 0:00:40]}  exd5 {[%clk 0:00:20]} 42. Kg2 {[%clk 0:00:39]}  Bxe3 {[%clk 0:00:19]} 43. Rxe3 {[%clk 0:00:40]}  Rxa4 {[%clk 0:00:20]} 44. Rd3 {[%clk 0:00:40]}  h4 {[%clk 0:00:17]} 45. Rxd5 {[%clk 0:00:38]}  hxg3 {[%clk 0:00:17]} 46. Kxg3 {[%clk 0:00:38]}  Ra1 {[%clk 0:00:18]} 47. Rd7 {[%clk 0:00:37]}  Kf6 {[%clk 0:00:16]} 48. Rxf7+ {[%clk 0:00:37]}  Ke6 {[%clk 0:00:17]} 49. Rg7 {[%clk 0:00:35]}  Kf5 {[%clk 0:00:16]} 50. Nf3 {[%clk 0:00:28]}  Kf6 {[%clk 0:00:11]} 51. Ra7 {[%clk 0:00:27]}  a4 {[%clk 0:00:12]} 52. Ra6+ {[%clk 0:00:27]}  Kg7 {[%clk 0:00:09]} 53. Ne5 {[%clk 0:00:27]}  a3 {[%clk 0:00:09]} 54. Rxg6+ {[%clk 0:00:25]}  Kh7 {[%clk 0:00:09]} 55. Ra6 {[%clk 0:00:24]}  a2 {[%clk 0:00:10]} 56. Kg2 {[%clk 0:00:23]}  Kg7 {[%clk 0:00:10]} 57. Nf3 {[%clk 0:00:22]}  Kf7 {[%clk 0:00:07]} 58. f5 {[%clk 0:00:21]}  Ke7 {[%clk 0:00:06]} 59. f6+ {[%clk 0:00:20]}  Kd7 {[%clk 0:00:06]} 60. Ne5+ {[%clk 0:00:18]}  Kc7 {[%clk 0:00:07]} 61. f7 {[%clk 0:00:18]}  Kb7 {[%clk 0:00:07]} 62. f8=Q {[%clk 0:00:15]}  Kxa6 {[%clk 0:00:08]} 63. Qa3+ {[%clk 0:00:14]}  Kb5 {[%clk 0:00:08]} 64. Qb2+ {[%clk 0:00:14]}  Ka4 {[%clk 0:00:09]} 65. Qxa1 {[%clk 0:00:14]}  Kb3 {[%clk 0:00:08]} 66. Kf2 {[%clk 0:00:13]} 1-0

[Event "December 19 Late 2023"]
[Site "https://www.chess.com"]
[Date "2023.12.19"]
[Round "7"]
[White "Asish Panda"]
[Black "Poormosavi, Seyed Kian"]
[Result "0-1"]
[Board "39"]
[TimeControl "180+1"]
[WhiteFideId "45012458"]
[BlackFideId "12585807"]
[WhiteElo "1767"]
[BlackElo "2296"]
[WhiteTeam "IND"]
[BlackTeam "IRI"]
[WhiteClock "0:00:00"]
[BlackClock "0:00:39"]

1. e4 {[%clk 0:03:00]}  c6 {[%clk 0:02:59]} 2. c4 {[%clk 0:03:00]}  d5 {[%clk 0:02:49]} 3. cxd5 {[%clk 0:03:01]}  cxd5 {[%clk 0:02:50]} 4. exd5 {[%clk 0:03:02]}  Nf6 {[%clk 0:02:50]} 5. Nc3 {[%clk 0:03:02]}  g6 {[%clk 0:02:51]} 6. Nf3 {[%clk 0:03:02]}  Bg7 {[%clk 0:02:52]} 7. d4 {[%clk 0:03:00]}  O-O {[%clk 0:02:52]} 8. Bc4 {[%clk 0:02:54]}  Nbd7 {[%clk 0:02:52]} 9. d6 {[%clk 0:02:54]}  exd6 {[%clk 0:02:49]} 10. O-O {[%clk 0:02:54]}  Nb6 {[%clk 0:02:49]} 11. Bb3 {[%clk 0:02:52]}  d5 {[%clk 0:02:47]} 12. h3 {[%clk 0:02:46]}  Bf5 {[%clk 0:02:43]} 13. Re1 {[%clk 0:02:26]}  Re8 {[%clk 0:02:39]} 14. Bg5 {[%clk 0:02:23]}  Rxe1+ {[%clk 0:02:38]} 15. Qxe1 {[%clk 0:02:23]}  h6 {[%clk 0:02:38]} 16. Bh4 {[%clk 0:02:21]}  g5 {[%clk 0:02:35]} 17. Bg3 {[%clk 0:02:21]}  Ne4 {[%clk 0:02:35]} 18. Be5 {[%clk 0:02:18]}  Nxc3 {[%clk 0:02:29]} 19. bxc3 {[%clk 0:02:16]}  Rc8 {[%clk 0:02:28]} 20. Rc1 {[%clk 0:01:39]}  a5 {[%clk 0:02:25]} 21. Bc2 {[%clk 0:01:33]}  Bxc2 {[%clk 0:02:20]} 22. Rxc2 {[%clk 0:01:32]}  Nc4 {[%clk 0:02:18]} 23. Bxg7 {[%clk 0:01:24]}  Kxg7 {[%clk 0:02:19]} 24. Ne5 {[%clk 0:01:23]}  Qf6 {[%clk 0:02:19]} 25. Nxc4 {[%clk 0:01:22]}  Rxc4 {[%clk 0:02:19]} 26. Rb2 {[%clk 0:01:15]}  Qc6 {[%clk 0:02:15]} 27. Qe5+ {[%clk 0:01:11]}  Kg6 {[%clk 0:02:15]} 28. Qh8 {[%clk 0:00:50]}  Rxc3 {[%clk 0:02:06]} 29. Qg8+ {[%clk 0:00:49]}  Kf6 {[%clk 0:02:06]} 30. Qd8+ {[%clk 0:00:39]}  Kf5 {[%clk 0:02:05]} 31. g4+ {[%clk 0:00:31]}  Ke4 {[%clk 0:01:59]} 32. Qe7+ {[%clk 0:00:13]}  Kxd4 {[%clk 0:01:48]} 33. Rd2+ {[%clk 0:00:13]}  Kc4 {[%clk 0:01:47]} 34. Qxf7 {[%clk 0:00:05]}  Rxh3 {[%clk 0:01:19]} 35. Rc2+ {[%clk 0:00:03]}  Rc3 {[%clk 0:01:19]} 36. Rxc3+ {[%clk 0:00:03]}  Kxc3 {[%clk 0:01:20]} 37. Qg7+ {[%clk 0:00:04]}  d4 {[%clk 0:01:20]} 38. Qe5 {[%clk 0:00:01]}  b5 {[%clk 0:00:49]} 39. Qe1+ {[%clk 0:00:02]}  Kc2 {[%clk 0:00:49]} 40. Qe2+ {[%clk 0:00:02]}  Kb1 {[%clk 0:00:41]} 41. Qe1+ {[%clk 0:00:00]}  Qc1 {[%clk 0:00:39]} 0-1

[Event "December 19 Late 2023"]
[Site "https://www.chess.com"]
[Date "2023.12.19"]
[Round "7"]
[White "Khater, Sherif"]
[Black "Zhu, Jiner"]
[Result "1-0"]
[Board "41"]
[TimeControl "180+1"]
[WhiteFideId "2034280"]
[BlackFideId "8608059"]
[WhiteElo "2558"]
[BlackElo "2384"]
[WhiteTeam "USA"]
[BlackTeam "CHN"]
[WhiteClock "0:01:36"]
[BlackClock "0:01:40"]

1. a3 {[%clk 0:03:00]}  Nf6 {[%clk 0:02:59]} 2. b4 {[%clk 0:03:01]}  g6 {[%clk 0:02:59]} 3. Bb2 {[%clk 0:03:02]}  Bg7 {[%clk 0:03:00]} 4. e3 {[%clk 0:03:02]}  d6 {[%clk 0:02:59]} 5. d4 {[%clk 0:03:03]}  O-O {[%clk 0:02:59]} 6. Nd2 {[%clk 0:03:04]}  Nbd7 {[%clk 0:02:59]} 7. Ngf3 {[%clk 0:03:04]}  b6 {[%clk 0:02:55]} 8. Bd3 {[%clk 0:03:00]}  Bb7 {[%clk 0:02:55]} 9. e4 {[%clk 0:03:01]}  Qe8 {[%clk 0:02:52]} 10. O-O {[%clk 0:03:00]}  e5 {[%clk 0:02:52]} 11. dxe5 {[%clk 0:03:00]}  dxe5 {[%clk 0:02:53]} 12. Qe2 {[%clk 0:02:59]}  Nh5 {[%clk 0:02:41]} 13. g3 {[%clk 0:02:59]}  f5 {[%clk 0:02:40]} 14. Ba6 {[%clk 0:02:59]}  Bxa6 {[%clk 0:02:37]} 15. Qxa6 {[%clk 0:03:00]}  Qf7 {[%clk 0:02:22]} 16. Ng5 {[%clk 0:02:50]}  Qe7 {[%clk 0:02:20]} 17. Qc4+ {[%clk 0:02:49]}  Kh8 {[%clk 0:02:20]} 18. Ne6 {[%clk 0:02:47]}  b5 {[%clk 0:02:13]} 19. Qb3 {[%clk 0:02:45]}  Rf6 {[%clk 0:02:12]} 20. Nxc7 {[%clk 0:02:41]}  Rc8 {[%clk 0:02:04]} 21. Nd5 {[%clk 0:02:41]}  Qf7 {[%clk 0:02:04]} 22. Nxf6 {[%clk 0:02:40]}  Qxf6 {[%clk 0:02:05]} 23. Rac1 {[%clk 0:01:54]}  Nb6 {[%clk 0:02:00]} 24. c4 {[%clk 0:01:47]}  Bh6 {[%clk 0:01:57]} 25. Nf3 {[%clk 0:01:39]}  Nxc4 {[%clk 0:01:40]} 26. Bxe5 {[%clk 0:01:36]} 1-0